bitfinex/quotes_SOLUSD_20240916
["timestamp","ask_amount","ask_price","bid_price","bid_amount"]
[1726485305805,0.2562729,132.4,132.39,46.71867929]
[1726485306182,0.2562729,132.4,132.39,48.22878125]
[1726485307907,0.2562729,132.4,132.39,31.330284]
[1726485308205,0.2562729,132.4,132.39,46.71867929]
[1726485311881,0.2562729,132.4,132.39,48.22877675]
[1726485313086,0.2562729,132.4,132.39,46.71867929]
[1726485314991,0.2562729,132.4,132.39,7.5534]
[1726485318109,0.2562729,132.4,132.39,48.22887203]
[1726485319613,0.2562729,132.4,132.39,31.330284]
[1726485319820,0.2562729,132.4,132.39,7.5534]
[1726485320111,0.2562729,132.4,132.39,24.45195678]
[1726485324012,0.2562729,132.4,132.39,22.94179529]
[1726485324503,0.2562729,132.4,132.39,7.5534]
[1726485326705,0.2562729,132.4,132.39,22.94179529]
[1726485327515,0.2562729,132.4,132.39,24.45196439]
[1726485328002,0.2562729,132.4,132.39,48.22884839]
[1726485331027,0.2562729,132.4,132.39,46.84416929]
[1726485331218,0.2562729,132.4,132.39,46.71867929]
[1726485336827,0.2562729,132.4,132.39,31.330284]
[1726485337026,0.2562729,132.4,132.39,22.94179529]
[1726485338309,0.2562729,132.4,132.39,7.5534]
[1726485338525,0.2562729,132.4,132.35,18.8881]
[1726485338832,0.2562729,132.4,132.37,7.5542]
[1726485339323,0.2562729,132.4,132.39,7.5534]
[1726485341425,0.2562729,132.4,132.39,48.22895037]
[1726485342005,0.2562729,132.4,132.39,46.71867929]
[1726485342206,0.2562729,132.4,132.39,48.22868927]
[1726485344032,0.2562729,132.4,132.39,46.71867929]
[1726485346123,0.2562729,132.4,132.39,48.22879834]
[1726485346630,0.2562729,132.4,132.39,31.330284]
[1726485347130,0.2562729,132.4,132.39,7.5534]
[1726485351623,0.2562729,132.4,132.38,7.5538]
[1726485351936,0.2562729,132.4,132.37,26.4406]
[1726485352310,0.2562729,132.4,132.38,7.554]
[1726485355252,0.2562729,132.4,132.38,9.06454732]
[1726485355539,0.2562729,132.4,132.37,26.4405]
[1726485355744,0.2562729,132.4,132.37,27.95104746]
[1726485356337,0.2562729,132.4,132.37,26.4405]
[1726485357738,0.2562729,132.4,132.37,27.95104773]
[1726485357913,0.2562729,132.4,132.37,26.4405]
[1726485359150,7.5544,132.38,132.35,7.5556]
[1726485359324,7.5534,132.39,132.35,7.5556]
[1726485359520,7.8092729,132.4,132.36,7.555]
[1726485359851,0.2562729,132.4,132.37,7.5541]
[1726485360818,7.8091729,132.4,132.36,26.4428]
[1726485362127,7.8091729,132.4,132.37,7.5541]
[1726485362128,0.2562729,132.4,132.37,7.5541]
[1726485362437,0.2562729,132.4,132.36,18.8878]
[1726485362637,0.2562729,132.4,132.37,7.5544]
[1726485363027,0.2562729,132.4,132.37,9.06502456]
[1726485363228,0.2562729,132.4,132.37,7.5544]
[1726485365946,7.8091729,132.4,132.36,26.4428]
[1726485368229,7.8091729,132.4,132.36,27.95343691]
[1726485368434,7.8091729,132.4,132.36,26.4428]
[1726485369545,7.8091729,132.4,132.37,1.51068413]
[1726485369727,7.8091729,132.4,132.37,9.06518413]
[1726485369926,7.8091729,132.4,132.38,18.8847]
[1726485369927,0.2562729,132.4,132.38,18.8847]
[1726485370258,0.2562729,132.4,132.39,24.45216968]
[1726485370420,0.2562729,132.4,132.39,46.71867929]
[1726485371143,0.2562729,132.4,132.39,7.5534]
[1726485371723,0.2562729,132.4,132.39,9.06376444]
[1726485371942,0.2562729,132.4,132.39,7.5534]
[1726485373741,0.2562729,132.4,132.38,26.4383]
[1726485373932,0.2562729,132.4,132.38,18.8847]
[1726485375252,0.2562729,132.4,132.38,26.4386]
[1726485375940,0.2562729,132.4,132.35,24.9713]
[1726485376257,7.8090729,132.4,132.36,9.06533371]
[1726485376555,7.8090729,132.4,132.37,7.5545]
[1726485376556,0.2562729,132.4,132.37,7.5545]
[1726485378330,0.2562729,132.4,132.38,1.51063256]
[1726485378659,0.2562729,132.4,132.37,7.5545]
[1726485379039,0.2562729,132.4,132.38,1.51062983]
[1726485379647,0.2562729,132.4,132.37,7.5545]
[1726485379848,20.25098,132.39,132.32,18.8922]
[1726485380159,20.25098,132.39,132.3,47.10330506]
[1726485380160,7.5558,132.35,132.3,7.5583]
[1726485380844,7.5564,132.34,132.3,7.5583]
[1726485381029,39.13468,132.39,132.29,26.4556]
[1726485381030,7.5568,132.33,132.29,26.4556]
[1726485381240,7.5568,132.33,132.29,18.8966]
[1726485381431,7.5568,132.33,132.29,26.4556]
[1726485383371,22.9142,132.34,132.3,7.5584]
[1726485383550,7.5558,132.35,132.31,1.51134142]
[1726485383858,7.5558,132.35,132.3,22.94679529]
[1726485383859,27.5558,132.35,132.3,22.94679529]
[1726485386645,20.0,132.35,132.32,18.8928]
[1726485386860,20.0,132.36,132.32,26.4502]
[1726485387162,16.17539,132.37,132.33,1.5111616]
[1726485387364,19.1395729,132.4,132.33,16.89955689]
[1726485387365,16.8529729,132.4,132.33,16.89955689]
[1726485387570,16.8529729,132.4,132.33,15.38839529]
[1726485387737,7.5544,132.38,132.34,22.94459529]
[1726485388168,7.5536,132.39,132.35,9.0656331]
[1726485388464,7.5536,132.39,132.35,7.5556]
[1726485391552,7.5536,132.39,132.35,22.94399529]
[1726485391955,7.5536,132.39,132.36,1.51071014]
[1726485395045,7.5536,132.39,132.35,22.94399529]
[1726485395244,7.5536,132.39,132.35,15.38839529]
[1726485395757,0.2562729,132.4,132.34,34.27869529]
[1726485395955,0.12549,132.39,132.34,18.8903]
[1726485396456,7.5546,132.37,132.34,18.8903]
[1726485400175,7.5542,132.38,132.35,1.51090729]
[1726485400490,7.5542,132.38,132.34,26.4465]
[1726485400851,20.2562729,132.4,132.35,7.5556]
[1726485400852,7.5536,132.39,132.35,7.5556]
[1726485401051,7.5536,132.39,132.35,9.06638049]
[1726485401780,7.5536,132.39,132.36,1.51077757]
[1726485402473,7.5541,132.38,132.34,41.83489529]
[1726485405274,7.5541,132.38,132.35,9.06637638]
[1726485405481,7.5541,132.38,132.35,7.5556]
[1726485407586,7.5541,132.38,132.34,41.83469529]
[1726485408677,7.5541,132.38,132.34,26.4463]
[1726485408881,7.5546,132.37,132.34,18.8903]
[1726485409589,7.5541,132.38,132.34,26.4465]
[1726485409771,7.5541,132.38,132.35,9.06646616]
[1726485409969,7.5541,132.38,132.34,26.4463]
[1726485410767,7.5541,132.38,132.34,27.95715286]
[1726485411284,7.5541,132.38,132.34,43.34554815]
[1726485412287,7.5541,132.38,132.34,41.83469529]
[1726485413887,7.5541,132.38,132.34,26.4463]
[1726485415266,7.5535,132.39,132.35,9.06605727]
[1726485415465,7.5535,132.39,132.35,22.94359529]
[1726485418183,7.5535,132.39,132.35,7.5552]
[1726485422396,20.2562729,132.4,132.34,26.4462]
[1726485422397,7.554,132.38,132.34,26.4462]
[1726485425273,7.5559,132.35,132.31,26.4516]
[1726485425488,20.25098,132.37,132.28,41.3706]
[1726485425799,20.25098,132.37,132.28,56.75899529]
[1726485426691,7.5564,132.34,132.3,7.5582]
[1726485427080,7.5558,132.35,132.31,7.5578]
[1726485430810,7.5553,132.36,132.32,7.5573]
[1726485431106,7.5557,132.35,132.32,7.5573]
[1726485431306,7.5557,132.35,132.31,22.94609529]
[1726485436585,7.5557,132.35,132.31,7.5577]
[1726485437494,7.5553,132.36,132.32,9.06816075]
[1726485440321,7.5553,132.36,132.33,9.06796371]
[1726485440527,7.5548,132.37,132.33,9.06796371]
[1726485442721,7.5548,132.37,132.33,7.5568]
[1726485443319,7.5551,132.36,132.32,41.83879529]
[1726485443723,7.5551,132.36,132.32,26.4504]
[1726485448000,7.5551,132.36,132.29,9.0201675]
[1726485448001,7.5563,132.34,132.3,7.5582]
[1726485449102,7.5563,132.34,132.31,7.558]
[1726485449301,0.25098,132.38,132.3,15.38839529]
[1726485450311,7.5558,132.35,132.31,7.5579]
[1726485450801,7.5558,132.35,132.31,9.06919955]
[1726485451227,7.5568,132.34,132.3,7.5583]
[1726485451431,7.5568,132.34,132.31,7.5579]
[1726485451803,7.5568,132.34,132.29,41.84379529]
[1726485452125,7.5559,132.35,132.3,7.5581]
[1726485452628,7.5559,132.35,132.29,34.28509529]
[1726485452629,7.5559,132.35,132.31,7.5579]
[1726485453222,0.25098,132.38,132.31,15.38839529]
[1726485454423,7.5551,132.36,132.33,18.8916]
[1726485456230,7.5551,132.36,132.32,7.5572]
[1726485466637,7.5551,132.36,132.33,1.51118406]
[1726485466832,7.5551,132.36,132.32,7.5572]
[1726485468434,7.5559,132.35,132.31,7.5576]
[1726485469338,7.5571,132.33,132.3,18.8952]
[1726485469544,7.5564,132.34,132.3,26.4535]
[1726485473541,20.0,132.36,132.32,7.5572]
[1726485473748,20.0,132.36,132.32,7.5571]
[1726485473749,27.5551,132.36,132.32,7.5571]
[1726485474924,7.5558,132.35,132.31,9.0691733]
[1726485479846,7.5558,132.35,132.31,7.5578]
[1726485482050,7.5566,132.34,132.3,26.4536]
[1726485487353,0.12549,132.35,132.28,22.4723]
[1726485487580,7.557,132.33,132.29,31.335984]
[1726485487854,7.5564,132.34,132.3,7.5585]
[1726485488760,7.5569,132.33,132.29,26.4565]
[1726485493469,7.5569,132.33,132.3,7.5585]
[1726485493759,7.5565,132.34,132.3,7.5585]
[1726485499274,7.5568,132.33,132.29,18.8976]
[1726485499568,7.5568,132.33,132.29,26.4564]
[1726485506571,7.5568,132.33,132.3,7.5585]
[1726485507770,7.5568,132.33,132.29,26.4564]
[1726485513874,7.5563,132.34,132.3,7.5583]
[1726485514173,20.0,132.36,132.3,15.38839529]
[1726485514379,23.90361225,132.4,132.33,7.5564]
[1726485514550,20.0,132.39,132.34,7.5562]
[1726485514873,7.5544,132.38,132.34,7.5562]
[1726485515069,20.0,132.37,132.34,7.5562]
[1726485515575,27.5546,132.37,132.33,24.4562129]
[1726485515871,27.5546,132.37,132.33,9.06781761]
[1726485517172,20.0,132.39,132.35,22.94389529]
[1726485517362,7.8092729,132.4,132.36,7.5551]
[1726485521474,7.8092729,132.4,132.36,9.06589512]
[1726485522267,0.2562729,132.4,132.37,18.886]
[1726485522578,0.2562729,132.4,132.37,26.4404]
[1726485524781,7.8094729,132.4,132.34,18.8899]
[1726485524963,7.5543,132.38,132.34,26.4457]
[1726485525163,7.5535,132.39,132.35,7.5557]
[1726485525752,7.5535,132.39,132.34,26.446]
[1726485526161,7.5535,132.39,132.35,7.5557]
[1726485526466,7.5535,132.39,132.34,26.4459]
[1726485529489,7.5535,132.39,132.34,41.83429529]
[1726485529984,7.5535,132.39,132.35,7.5556]
[1726485532567,0.25098,132.39,132.31,34.28309529]
[1726485532775,0.25098,132.39,132.31,18.8947]
[1726485533003,7.5552,132.36,132.32,7.557]
[1726485534684,0.2562729,132.4,132.35,22.94369529]
[1726485535073,7.8092729,132.4,132.36,7.555]
[1726485539393,0.2562729,132.4,132.37,7.5545]
[1726485540470,7.8091729,132.4,132.36,7.5549]
[1726485542681,7.5534,132.39,132.35,26.4444]
[1726485543467,7.554,132.38,132.35,26.4444]
[1726485543664,7.554,132.38,132.35,18.8889]
[1726485543866,7.5548,132.37,132.33,7.5567]
[1726485544090,20.25098,132.39,132.32,18.8926]
[1726485544304,7.5558,132.35,132.32,18.8926]
[1726485544878,7.5558,132.35,132.31,7.5575]
[1726485544879,0.25098,132.37,132.3,15.38839529]
[1726485545088,0.25098,132.37,132.29,41.3516]
[1726485545089,16.89778,132.37,132.29,41.3516]
[1726485545293,16.89778,132.37,132.3,15.38839529]
[1726485545905,7.5558,132.35,132.31,7.5576]
[1726485546285,7.5553,132.36,132.32,7.5574]
[1726485548308,7.5557,132.35,132.31,26.4523]
[1726485548496,16.89778,132.37,132.31,26.4523]
[1726485548497,7.5565,132.34,132.31,18.8945]
[1726485548698,7.5565,132.34,132.3,7.5583]
[1726485548901,7.5569,132.33,132.29,7.559]
[1726485550524,7.5569,132.33,132.28,7.5596]
[1726485550525,0.12549,132.33,132.28,7.5596]
[1726485550897,0.12549,132.33,132.27,26.4602]
[1726485550898,7.5581,132.31,132.27,26.4602]
[1726485553689,7.5581,132.31,132.27,41.84859529]
[1726485554498,7.5575,132.32,132.28,7.5596]
[1726485554697,0.12549,132.33,132.29,20.40905099]
[1726485554912,6.2685,132.38,132.31,15.38839529]
[1726485555111,6.2685,132.38,132.32,7.557]
[1726485555112,7.5555,132.36,132.32,7.557]
[1726485556113,7.5555,132.36,132.32,22.94539529]
[1726485556309,6.2685,132.38,132.32,24.45662275]
[1726485556310,24.2015,132.37,132.32,24.45662275]
[1726485556812,24.2015,132.37,132.32,22.94539529]
[1726485557194,7.5552,132.36,132.32,22.94539529]
[1726485557395,0.12549,132.36,132.31,34.28309529]
[1726485557597,0.12549,132.36,132.31,18.8947]
[1726485557806,0.25098,132.36,132.31,18.8947]
[1726485558205,7.5566,132.34,132.3,7.5583]
[1726485559319,0.25098,132.33,132.28,18.8981]
[1726485559518,20.25098,132.34,132.28,18.8981]
[1726485559816,27.68189,132.34,132.3,7.5585]
[1726485563501,16.6468,132.37,132.31,15.38839529]
[1726485563698,16.6468,132.37,132.32,15.38839529]
[1726485564104,7.5552,132.36,132.32,22.94539529]
[1726485567012,7.5552,132.36,132.33,15.38839529]
[1726485569125,7.5552,132.36,132.32,24.45661442]
[1726485569424,7.5552,132.36,132.32,43.35001442]
[1726485571425,7.5547,132.37,132.33,9.06770614]
[1726485571729,7.5547,132.37,132.33,24.45610143]
[1726485571917,7.554,132.38,132.35,7.5555]
[1726485572242,7.554,132.38,132.34,41.83389529]
[1726485572425,7.554,132.38,132.34,26.4455]
[1726485572629,7.555,132.37,132.31,18.8938]
[1726485572926,7.555,132.37,132.32,15.38839529]
[1726485574008,7.555,132.37,132.33,7.5565]
[1726485574819,7.555,132.37,132.33,26.4485]
[1726485577743,0.12549,132.39,132.36,7.5549]
[1726485578047,0.2562729,132.4,132.38,7.554]
[1726485578220,0.2562729,132.4,132.37,34.27459529]
[1726485579321,0.2562729,132.4,132.38,7.5538]
[1726485579630,0.2562729,132.4,132.38,24.45285033]
[1726485580020,0.2562729,132.4,132.38,7.5538]
[1726485580622,0.2562729,132.4,132.38,9.06430692]
[1726485581732,0.2562729,132.4,132.38,7.5538]
[1726485594444,0.2562729,132.44,132.35,22.4121]
[1726485594445,0.2562729,132.44,132.43,18.8778]
[1726485594644,0.2562729,132.44,132.43,65.59417929]
[1726485594823,0.2562729,132.44,132.43,67.10392898]
[1726485595137,0.2562729,132.44,132.43,65.59417929]
[1726485606365,0.2562729,132.44,132.43,67.10381052]
[1726485606660,7.5468,132.51,132.43,67.10381052]
[1726485606661,7.5468,132.51,132.47,22.93719529]
[1726485606830,7.5468,132.51,132.47,24.44673146]
[1726485607230,27.8023729,132.52,132.47,24.44673146]
[1726485608154,20.2562729,132.52,132.47,24.44673146]
[1726485608354,0.2562729,132.52,132.47,46.71407929]
[1726485608551,0.2562729,132.52,132.47,48.22339025]
[1726485610258,0.2562729,132.52,132.47,46.71407929]
[1726485611733,0.2562729,132.52,132.47,48.22330323]
[1726485612542,0.2562729,132.52,132.47,46.71407929]
[1726485613144,7.5469,132.51,132.47,7.5488]
[1726485618258,0.2562729,132.52,132.47,48.2235609]
[1726485618558,0.2562729,132.52,132.47,46.71407929]
[1726485620264,0.2562729,132.52,132.47,48.22328895]
[1726485621547,0.2562729,132.52,132.47,46.71407929]
[1726485621762,0.2562729,132.52,132.47,7.5488]
[1726485622074,0.2562729,132.52,132.47,22.93719529]
[1726485622360,0.2562729,132.52,132.47,7.5488]
[1726485623244,7.5469,132.51,132.47,7.5488]
[1726485626165,7.5469,132.51,132.47,22.93719529]
[1726485626354,7.8024729,132.52,132.47,22.93719529]
[1726485630597,7.8024729,132.52,132.47,46.71407929]
[1726485631759,7.5468,132.51,132.47,22.93719529]
[1726485632055,7.5468,132.51,132.47,7.5488]
[1726485634547,7.5468,132.51,132.47,22.93719529]
[1726485635570,16.0122729,132.52,132.47,22.93719529]
[1726485635774,16.0122729,132.52,132.47,46.71407929]
[1726485637370,16.0122729,132.52,132.47,47.77739097]
[1726485638261,16.0122729,132.52,132.47,48.22340849]
[1726485638560,16.0122729,132.52,132.47,46.71407929]
[1726485638749,16.0122729,132.52,132.46,18.8726]
[1726485638950,16.0122729,132.52,132.46,34.26099529]
[1726485639454,16.0122729,132.52,132.46,18.8726]
[1726485639770,7.5473,132.5,132.46,7.5493]
[1726485641773,7.5478,132.49,132.45,41.81289529]
[1726485642248,7.5478,132.49,132.45,26.4245]
[1726485643471,7.5472,132.5,132.46,1.50977748]
[1726485643675,7.5472,132.5,132.45,26.4245]
[1726485644168,7.5472,132.5,132.46,9.05897641]
[1726485644352,7.5472,132.5,132.46,7.5493]
[1726485647271,16.0122729,132.52,132.47,24.44686889]
[1726485647449,16.0122729,132.52,132.47,31.325684]
[1726485647650,16.0122729,132.52,132.47,46.71407929]
[1726485649747,16.0122729,132.52,132.47,48.22341042]
[1726485653071,16.0122729,132.52,132.46,22.93769529]
[1726485653279,16.0122729,132.52,132.47,7.5488]
[1726485654261,23.5584729,132.52,132.47,7.5488]
[1726485654873,23.5584729,132.52,132.47,22.93719529]
[1726485659673,0.2562729,132.52,132.47,46.71407929]
[1726485660610,7.8022729,132.52,132.47,7.5488]
[1726485661281,7.5466,132.51,132.47,7.5488]
[1726485662386,7.5466,132.51,132.46,22.93759529]
[1726485662580,7.5466,132.51,132.45,18.8746]
[1726485662581,7.5475,132.5,132.45,26.4244]
[1726485662789,7.5475,132.5,132.46,7.5494]
[1726485664401,23.7494,132.51,132.46,22.93779529]
[1726485664602,23.7494,132.51,132.46,24.44741383]
[1726485664893,23.7494,132.51,132.46,22.93779529]
[1726485665279,23.7494,132.51,132.47,7.5488]
[1726485665595,0.2562729,132.52,132.47,7.5488]
[1726485665788,0.2562729,132.52,132.47,46.71407929]
[1726485671173,0.2562729,132.52,132.47,31.325684]
[1726485671476,20.2562729,132.52,132.45,18.8746]
[1726485671694,7.5479,132.49,132.45,18.8746]
[1726485672290,7.5479,132.49,132.45,26.4245]
[1726485672695,7.5479,132.49,132.44,22.93889529]
[1726485673384,7.5472,132.5,132.45,7.5498]
[1726485673584,7.5477,132.49,132.44,26.4264]
[1726485673782,0.12549,132.47,132.41,18.8796]
[1726485674005,7.67449,132.47,132.41,18.8796]
[1726485675374,7.67449,132.47,132.42,7.5515]
[1726485676997,7.67449,132.47,132.41,26.4317]
[1726485677893,7.67449,132.47,132.42,7.5516]
[1726485678719,7.67449,132.47,132.42,22.93999529]
[1726485678882,23.9719729,132.48,132.43,22.93939529]
[1726485679078,16.4235729,132.48,132.46,15.38839529]
[1726485679904,16.4235729,132.48,132.46,22.93779529]
[1726485680087,16.4235729,132.48,132.45,34.26279529]
[1726485680291,16.4235729,132.48,132.45,41.81269529]
[1726485683305,16.4235729,132.48,132.46,7.5494]
[1726485683610,0.2562729,132.48,132.46,22.93779529]
[1726485684504,0.2562729,132.48,132.46,22.43779529]
[1726485685107,0.2562729,132.48,132.46,7.0494]
[1726485686400,0.2562729,132.48,132.45,15.38839529]
[1726485686598,0.2562729,132.48,132.45,7.5498]
[1726485686802,0.12549,132.47,132.42,15.38839529]
[1726485687191,7.5498,132.46,132.41,41.81979529]
[1726485687504,7.5498,132.46,132.42,7.5515]
[1726485688188,0.12549,132.47,132.42,7.5515]
[1726485688389,23.2327,132.46,132.41,26.4317]
[1726485688589,7.67549,132.45,132.41,18.8796]
[1726485690012,7.67549,132.45,132.41,26.4318]
[1726485691000,7.67549,132.45,132.41,18.8796]
[1726485691183,7.5513,132.43,132.38,41.82639529]
[1726485691511,7.5513,132.43,132.38,26.438]
[1726485691888,7.5517,132.42,132.38,26.438]
[1726485692087,20.12549,132.43,132.36,15.38839529]
[1726485692329,0.12549,132.42,132.36,15.38839529]
[1726485692785,0.12549,132.42,132.37,7.5545]
[1726485692786,7.5524,132.41,132.37,7.5545]
[1726485692982,0.12549,132.41,132.37,7.5545]
[1726485698197,20.12549,132.43,132.39,7.553]
[1726485698420,20.0,132.43,132.4,7.5527]
[1726485698795,20.0,132.43,132.39,41.82489529]
[1726485702125,20.0,132.43,132.4,22.94109529]
[1726485703996,7.5506,132.44,132.4,22.94109529]
[1726485711036,7.5506,132.44,132.4,7.5527]
[1726485715000,0.12549,132.45,132.4,22.94109529]
[1726485715201,20.25098,132.45,132.41,22.94029529]
[1726485716028,27.80128,132.45,132.41,22.94029529]
[1726485716235,27.80128,132.45,132.41,15.38839529]
[1726485718426,27.80128,132.45,132.4,22.94099529]
[1726485718907,7.5513,132.43,132.39,34.27159529]
[1726485719108,7.5517,132.42,132.38,7.5538]
[1726485719609,7.67789,132.41,132.37,13.574]
[1726485719821,7.5524,132.41,132.37,6.0196]
[1726485720136,7.5524,132.41,132.37,7.5545]
[1726485721012,7.5524,132.41,132.36,41.82979529]
[1726485721212,7.5528,132.4,132.35,7.5556]
[1726485721515,0.12549,132.39,132.35,7.5556]
[1726485723831,0.12549,132.39,132.35,22.94399529]
[1726485724032,20.0,132.4,132.36,22.94329529]
[1726485724237,20.0,132.4,132.37,15.38839529]
[1726485724415,20.0,132.4,132.36,22.94329529]
[1726485728925,20.0,132.4,132.37,15.38839529]
[1726485729652,20.0,132.4,132.36,22.94329529]
[1726485733957,20.0,132.4,132.37,15.38839529]
[1726485735355,0.12549,132.41,132.37,15.38839529]
[1726485735543,0.12549,132.4,132.37,15.38839529]
[1726485736953,20.12549,132.4,132.37,15.38839529]
[1726485744680,17.00098457,132.46,132.39,15.38839529]
[1726485744983,15.6833,132.46,132.4,15.38839529]
[1726485745377,15.6833,132.46,132.42,15.38839529]
[1726485745559,23.2332,132.46,132.42,15.38839529]
[1726485746986,20.0,132.45,132.42,15.38839529]
[1726485747467,0.2562729,132.48,132.44,15.38839529]
[1726485747468,7.8048729,132.48,132.44,15.38839529]
[1726485748887,20.25098,132.47,132.44,15.38839529]
[1726485749787,7.8048729,132.48,132.45,15.38839529]
[1726485749788,20.2562729,132.48,132.45,15.38839529]
[1726485758302,20.2562729,132.48,132.46,15.38839529]
[1726485758510,0.2562729,132.48,132.47,15.38839529]
[1726485759696,0.2562729,132.48,132.46,22.93779529]
[1726485763815,0.2562729,132.48,132.45,41.81299529]
[1726485764517,0.2562729,132.48,132.44,7.5503]
[1726485764715,7.5498,132.46,132.41,7.5521]
[1726485764890,7.5498,132.46,132.42,15.38839529]
[1726485766323,20.0,132.46,132.43,15.38839529]
[1726485768414,0.25098,132.47,132.43,34.26539529]
[1726485768723,20.25098,132.47,132.43,41.81639529]
[1726485768914,20.0,132.46,132.43,41.81639529]
[1726485769446,20.0,132.46,132.44,15.38839529]
[1726485769927,0.12549,132.47,132.44,22.93889529]
[1726485770129,0.12549,132.47,132.44,15.38839529]
[1726485770425,20.0,132.46,132.44,15.38839529]
[1726485771309,0.12549,132.47,132.44,15.38839529]
[1726485771509,20.12549,132.47,132.44,15.38839529]
[1726485772143,7.67429,132.47,132.44,15.38839529]
[1726485772517,20.0,132.46,132.44,15.38839529]
[1726485773630,20.0,132.46,132.43,34.26539529]
[1726485774000,7.5535,132.39,132.35,6.5334]
[1726485774201,0.12549,132.39,132.35,29.47749529]
[1726485774419,0.12549,132.38,132.35,21.92179529]
[1726485774623,0.12549,132.38,132.35,6.5334]
[1726485774932,0.12549,132.38,132.34,39.79006819]
[1726485779009,0.12549,132.38,132.35,15.38839529]
[1726485779208,0.12549,132.38,132.35,22.94399529]
[1726485780741,0.12549,132.38,132.35,15.38839529]
[1726485781247,0.12549,132.38,132.34,39.79006819]
[1726485784615,0.12549,132.4,132.36,15.38839529]
[1726485784820,0.25098,132.4,132.36,15.38839529]
[1726485788852,0.12549,132.4,132.36,22.94339529]
[1726485792546,0.25098,132.4,132.35,18.8887]
[1726485792761,7.80378,132.4,132.35,26.4443]
[1726485793951,0.25098,132.4,132.35,26.4443]
[1726485794135,0.25098,132.4,132.35,41.83269529]
[1726485795534,0.25098,132.4,132.35,26.4443]
[1726485799659,0.25098,132.4,132.36,15.38839529]
[1726485808374,0.12549,132.4,132.37,15.38839529]
[1726485812580,0.12549,132.4,132.36,15.38839529]
[1726485812767,0.12549,132.4,132.35,41.83249529]
[1726485816458,0.12549,132.4,132.36,15.38839529]
[1726485816658,0.12549,132.4,132.37,15.38839529]
[1726485818975,0.12549,132.4,132.36,15.38839529]
[1726485819880,0.12549,132.4,132.35,26.4441]
[1726485820584,20.12549,132.39,132.34,0.2562729]
[1726485820885,0.25098,132.38,132.34,0.2562729]
[1726485821182,0.12549,132.38,132.34,0.2562729]
[1726485821383,20.25098,132.37,132.34,0.2562729]
[1726485844034,20.25098,132.37,132.34,26.7025729]
[1726485844628,20.25098,132.37,132.34,19.1468729]
[1726485844834,20.12549,132.37,132.34,42.09146819]
[1726485845021,0.25098,132.4,132.35,22.94369529]
[1726485847948,20.25098,132.4,132.35,22.94369529]
[1726485849250,20.25098,132.4,132.36,7.5551]
[1726485849426,20.25098,132.4,132.36,22.94349529]
[1726485852246,20.25098,132.4,132.34,19.1468729]
[1726485852247,20.25098,132.4,132.34,42.09116819]
[1726485853322,20.25098,132.4,132.35,7.5554]
[1726485853544,20.25098,132.4,132.35,22.94379529]
[1726485855830,20.25098,132.4,132.36,22.94339529]
[1726485857047,0.12549,132.4,132.38,15.38839529]
[1726485857250,0.25098,132.41,132.38,15.38839529]
[1726485858637,0.25098,132.41,132.38,22.94219529]
[1726485858841,0.25098,132.42,132.38,22.94219529]
[1726485869454,0.25098,132.42,132.37,22.94279529]
[1726485869671,0.25098,132.42,132.36,18.8877]
[1726485871374,0.25098,132.42,132.36,26.4425]
[1726485881789,7.80308,132.42,132.34,7.8120729]
[1726485881990,0.25098,132.4,132.35,22.94399529]
[1726485882790,0.25098,132.4,132.35,41.83319529]
[1726485883287,0.25098,132.4,132.36,7.555]
[1726485885391,0.25098,132.4,132.34,0.2562729]
[1726485885560,20.25098,132.4,132.34,23.20046819]
[1726485886987,42.88258,132.4,132.34,0.2562729]
[1726485888088,20.25098,132.37,132.34,0.2562729]
[1726485888461,20.25098,132.38,132.34,0.2562729]
[1726485893891,0.25098,132.38,132.34,0.2562729]
[1726485897206,20.0,132.37,132.34,0.2562729]
[1726485897488,0.25098,132.38,132.34,0.2562729]
[1726485898190,20.0,132.37,132.34,0.2562729]
[1726485898398,0.25098,132.36,132.34,0.2562729]
[1726485902090,0.25098,132.37,132.34,0.2562729]
[1726485907396,20.0,132.36,132.34,0.2562729]
[1726485907606,0.25098,132.35,132.34,0.2562729]
[1726485909613,0.25098,132.35,132.3,0.2562729]